bitfinex-derivatives/quotes_ETHF0:USTF0_20260116
["timestamp","ask_amount","ask_price","bid_price","bid_amount"]
[1768582674568,0.92105453,3280.4,3279.0,3.40925668]
[1768582674780,3.31985913,3280.6,3279.0,3.41173076]
[1768582674967,0.92109444,3280.5,3279.0,3.41173076]
[1768582675166,0.92109444,3280.4,3279.0,3.41173076]
[1768582675363,0.92109444,3280.3,3279.0,3.41173076]
[1768582675573,0.15244,3280.8,3279.0,3.41173076]
[1768582675774,0.92165612,3280.7,3279.0,3.41173076]
[1768582675974,0.92165612,3280.6,3279.0,3.41173076]
[1768582676175,0.92165612,3280.5,3279.0,3.41173076]
[1768582676377,0.92165612,3280.4,3279.0,3.41173076]
[1768582676577,0.92165612,3280.3,3279.0,3.41173076]
[1768582676781,0.92165612,3280.2,3279.0,3.41173076]
[1768582676979,3.47229913,3280.8,3279.0,3.41173076]
[1768582677170,4.24217468,3280.7,3279.0,3.41173076]
[1768582677368,0.15246,3280.4,3279.0,0.00247408]
[1768582677581,3.31985913,3280.2,3279.0,0.00247408]
[1768582677872,0.92231555,3280.1,3279.0,0.00247408]
[1768582681682,0.92231555,3280.1,3279.0,3.41173076]
[1768582681869,0.92231555,3280.0,3279.0,3.41173076]
[1768582682072,3.92042857,3281.0,3279.0,3.41173076]
[1768582682286,0.15243,3280.9,3279.0,3.41173076]
[1768582682779,3.47228913,3280.9,3279.0,3.41173076]
[1768582683176,0.15244,3280.7,3279.0,0.00247408]
[1768582683380,3.31985913,3280.6,3279.0,0.00247408]
[1768582683580,3.47230913,3280.5,3279.0,0.00247408]
[1768582693893,3.31985913,3280.5,3279.0,0.00247408]
[1768582694095,0.91756025,3280.4,3279.0,0.00247408]
[1768582694284,0.91756025,3280.3,3279.0,0.00247408]
[1768582694486,3.31985913,3280.9,3279.0,3.41173076]
[1768582694690,4.23744166,3280.8,3279.0,3.41173076]
[1768582694890,0.91758253,3280.7,3279.0,3.41173076]
[1768582695090,0.91758253,3280.6,3279.0,3.56425076]
[1768582695293,0.91758253,3280.5,3279.0,3.56425076]
[1768582695493,0.91758253,3280.4,3279.0,3.56425076]
[1768582695695,3.31985913,3280.8,3279.0,3.56425076]
[1768582695995,0.91758838,3280.7,3279.0,3.56425076]
[1768582696193,0.91758838,3280.6,3279.0,3.56425076]
[1768582696498,0.91759013,3280.5,3279.0,3.56425076]
[1768582696791,3.31985913,3280.8,3279.2,3.56176668]
[1768582696993,0.91757815,3280.7,3279.2,3.56176668]
[1768582697190,0.15243,3280.9,3279.2,3.56176668]
[1768582697398,4.23743644,3280.8,3279.2,3.56176668]
[1768582697598,0.91757731,3280.7,3279.2,3.56176668]
[1768582698092,0.91757731,3280.7,3279.3,3.56175668]
[1768582698301,6.37334129,3281.2,3279.4,3.56175668]
[1768582698500,0.91754549,3281.1,3279.4,3.56175668]
[1768582698699,0.91754549,3281.0,3279.5,40.8]
[1768582698899,3.31985913,3281.1,3279.5,40.8]
[1768582699102,3.47229913,3280.7,3279.0,0.00247408]
[1768582699407,3.47230913,3280.5,3279.0,0.00247408]
[1768582699606,4.23742931,3280.4,3279.0,0.00247408]
[1768582699897,3.31985913,3280.4,3279.0,0.00247408]
[1768582701298,0.91839298,3280.3,3279.0,0.00247408]
[1768582701498,3.31985913,3280.4,3279.0,0.00247408]
[1768582701700,0.91839302,3280.3,3279.0,0.00247408]
[1768582701901,0.15245,3280.5,3279.0,0.00247408]
[1768582701902,3.56340439,3280.1,3279.0,0.00247408]
[1768582702100,0.9184306,3280.0,3279.0,0.00247408]
[1768582703903,3.56340439,3279.9,3279.0,0.00247408]
[1768582707807,3.71586439,3280.3,3279.0,0.00247408]
[1768582708007,0.91874022,3280.2,3279.0,0.00247408]
[1768582708203,0.91874022,3280.1,3279.0,0.00247408]
[1768582708403,0.91874022,3280.0,3279.0,0.00247408]
[1768582708612,0.91874022,3279.9,3279.0,0.00247408]
[1768582708797,3.71586439,3280.3,3279.0,0.00247408]
[1768582709000,4.37338882,3280.2,3279.0,0.00247408]
[1768582709305,3.45463706,3280.0,3279.0,0.00247408]
[1768582709512,3.45463706,3279.8,3279.0,0.00247408]
[1768582711614,3.45463706,3279.8,3278.0,3.774]
[1768582712013,3.45463706,3279.8,3278.1,40.8]
[1768582712611,3.45463706,3279.8,3278.1,44.57777531]
[1768582713213,3.45463706,3279.8,3278.1,44.73033531]
[1768582713819,3.45463706,3279.8,3278.2,0.15256]
[1768582715114,3.45463706,3279.8,3278.3,0.15255]
[1768582716912,3.60709706,3280.3,3278.4,0.15255]
[1768582717111,0.91868598,3280.2,3278.4,3.52065418]
[1768582717308,0.91868598,3280.1,3278.4,3.52065418]
[1768582717508,0.91868598,3280.0,3278.4,3.52065418]
[1768582717708,0.91868598,3279.9,3278.4,3.52065418]
[1768582717918,3.45463706,3280.2,3278.4,3.52065418]
[1768582718117,4.37330622,3280.1,3278.4,3.52065418]
[1768582718318,0.91866916,3280.0,3278.4,3.52065418]
[1768582718513,0.91866916,3279.9,3278.4,3.52065418]
[1768582718826,3.45463706,3280.1,3278.5,3.788]
[1768582719121,0.91865374,3280.0,3278.5,3.788]
[1768582719311,0.91865374,3279.9,3278.5,3.788]
[1768582719510,3.45463706,3280.1,3278.5,3.788]
[1768582719714,0.91863912,3280.0,3278.5,3.788]
[1768582719921,0.91863912,3279.9,3278.5,3.788]
[1768582720119,3.45463706,3280.1,3278.5,3.788]
[1768582720319,0.91863886,3280.0,3278.5,3.788]
[1768582720519,0.91863886,3279.9,3278.4,3.52065418]
[1768582720721,3.45463706,3279.9,3278.5,3.791]
[1768582721520,3.45463706,3279.9,3278.4,0.15255]
[1768582721735,3.45463706,3279.9,3278.4,3.94355]
[1768582722528,3.60709706,3280.2,3278.5,3.52064418]
[1768582722733,3.45463706,3280.0,3278.5,3.94454]
[1768582722925,0.91860318,3279.9,3278.5,3.94454]
[1768582723125,3.45463706,3280.0,3278.5,3.94454]
[1768582723325,0.92033457,3279.9,3278.5,3.94454]
[1768582723525,3.45463706,3280.0,3278.5,3.94454]
[1768582723826,0.92032594,3279.9,3278.5,3.94454]
[1768582724025,3.45463706,3280.0,3278.5,3.94454]
[1768582724232,0.92032594,3279.9,3278.5,3.94454]
[1768582724431,3.45463706,3280.0,3278.5,3.94454]
[1768582724633,0.92032242,3279.9,3278.5,3.94454]
[1768582724830,3.45463706,3280.0,3278.5,3.94454]
[1768582725036,0.92032206,3279.9,3278.5,7.31264418]
[1768582725226,3.45463706,3280.0,3278.5,7.31264418]
[1768582725428,0.92037184,3279.9,3278.5,7.31264418]
[1768582725728,3.45463706,3280.0,3278.5,7.31264418]
[1768582725928,0.92037213,3279.9,3278.5,7.31264418]
[1768582726129,3.45463706,3280.0,3278.5,7.31264418]
[1768582726437,3.45463706,3280.5,3278.7,3.52063418]
[1768582726634,0.92042868,3280.4,3278.9,3.36810418]
[1768582726835,0.92042868,3280.3,3278.9,3.36810418]
[1768582727135,0.92042868,3280.2,3278.9,3.36810418]
[1768582727335,0.92042868,3280.1,3278.9,3.36810418]
[1768582727636,3.60707706,3280.8,3278.9,3.36810418]
[1768582727837,0.9206177,3280.7,3278.9,3.36810418]
[1768582728030,0.9206177,3280.6,3278.9,3.36810418]
[1768582728231,0.9206177,3280.5,3278.9,3.36810418]
[1768582728435,0.9206177,3280.4,3278.9,3.36810418]
[1768582728635,0.9206177,3280.3,3278.9,7.16210418]
[1768582728836,0.9206177,3280.2,3278.9,7.16210418]
[1768582729025,0.9206177,3280.1,3278.9,7.16210418]
[1768582729226,0.9213259,3280.0,3278.2,3.20355]
[1768582729433,5.6170289,3279.9,3278.6,1.24103369]
[1768582729630,4.69567075,3279.9,3278.6,1.24103369]
[1768582729940,3.45463706,3279.9,3278.6,1.24103369]
[1768582730141,1.24103369,3279.8,3278.4,1.24103369]
[1768582730434,3.45463706,3279.9,3278.4,1.24103369]
[1768582730631,0.92152119,3279.8,3278.7,1.24103369]
[1768582730830,3.45463706,3279.9,3278.7,1.24103369]
[1768582731027,0.92152015,3279.8,3278.7,1.24103369]
[1768582731230,3.45463706,3279.9,3278.7,1.24103369]
[1768582731430,0.92172673,3279.8,3278.7,1.24103369]
[1768582731631,3.45463706,3279.9,3278.7,1.24103369]
[1768582731839,0.92172773,3279.8,3278.7,1.24103369]
[1768582732040,3.45463706,3279.9,3278.7,1.24103369]
[1768582732237,0.92172773,3279.8,3278.7,1.24103369]
[1768582732433,3.45463706,3279.9,3278.7,1.24103369]
[1768582732633,0.92172655,3279.8,3278.7,1.24103369]
[1768582732830,3.472802,3279.7,3278.2,0.15255]
[1768582733033,3.472802,3279.7,3278.3,1.24103369]
[1768582733235,3.472802,3279.5,3278.3,1.24103369]
[1768582734439,3.472802,3279.5,3278.5,1.24103369]
[1768582736438,3.472802,3279.9,3278.7,1.24103369]
[1768582736628,0.92122332,3279.8,3278.7,1.24103369]
[1768582736828,0.92122332,3279.7,3278.7,1.24103369]
[1768582737135,0.92122332,3279.6,3278.7,1.24103369]
[1768582737334,0.92122332,3279.5,3278.7,1.24103369]
[1768582737535,3.472802,3279.9,3278.7,1.24103369]
[1768582737737,0.92113825,3279.8,3278.7,1.24103369]
[1768582737943,0.92113825,3279.7,3278.7,1.24103369]
[1768582738142,3.472802,3279.9,3278.7,1.24103369]
[1768582738143,0.92113825,3279.6,3278.7,1.24103369]
[1768582738331,4.71383569,3280.3,3278.9,1.24103369]
[1768582738535,0.92105094,3280.2,3279.1,1.24103369]
[1768582738735,0.92105094,3280.1,3279.1,1.24103369]
[1768582738941,0.92105094,3280.0,3279.1,1.24103369]
[1768582739145,0.92105094,3279.9,3279.1,1.24103369]
[1768582739441,4.71383569,3279.7,3278.4,1.24103369]
[1768582739746,0.92105094,3279.6,3278.4,1.24103369]
[1768582740542,0.92105094,3279.6,3278.5,1.24103369]
[1768582740743,0.92105094,3279.6,3278.4,1.24103369]
[1768582740946,0.92105094,3279.6,3278.6,1.24103369]
[1768582746355,0.92105094,3279.6,3278.8,1.24103369]
[1768582746552,3.472802,3280.1,3278.8,1.24103369]
[1768582746753,0.92087773,3280.0,3278.8,1.24103369]
[1768582746954,0.92087773,3279.9,3278.8,1.24103369]
[1768582747153,0.92087773,3279.8,3278.3,0.15255]
[1768582747348,0.92087773,3279.7,3278.6,0.15254]
[1768582747553,3.472802,3280.5,3279.3,1.24103369]
[1768582747754,0.92082985,3280.4,3279.1,1.24103369]
[1768582747954,0.92082985,3280.3,3279.1,1.24103369]
[1768582748658,1.24103369,3280.0,3278.6,3.49287811]
[1768582748857,0.92082985,3279.9,3278.5,1.24103369]
[1768582749555,0.92082985,3279.9,3278.2,3.64543811]
[1768582749756,0.92082985,3279.9,3278.7,1.24103369]
[1768582750058,0.92082985,3279.8,3278.7,1.24103369]
[1768582750257,3.472802,3280.1,3278.7,1.24103369]
[1768582750457,0.92089302,3280.0,3278.7,1.24103369]
[1768582750654,0.92089302,3279.9,3279.3,1.24103369]
[1768582750959,0.15245,3280.4,3279.2,1.24103369]
[1768582751162,3.472802,3280.1,3278.5,3.49287811]
[1768582751360,0.92085539,3280.0,3278.7,1.24103369]
[1768582751560,0.92085539,3279.9,3278.7,1.24103369]
[1768582751858,3.472802,3280.1,3278.7,1.24103369]
[1768582752055,0.92087164,3280.0,3278.7,1.24103369]
[1768582752260,0.92087164,3279.9,3278.7,1.24103369]
[1768582752456,1.24103369,3279.7,3278.3,1.24103369]
[1768582752962,0.92093587,3279.6,3278.3,1.24103369]
[1768582753262,4.71383569,3279.7,3278.3,1.24103369]
[1768582753562,0.91788281,3279.6,3278.3,1.24103369]
[1768582753762,4.71383569,3279.7,3278.3,1.24103369]
[1768582754062,0.91788253,3279.6,3278.6,1.24103369]
[1768582754258,3.472802,3279.7,3278.6,1.24103369]
[1768582754458,0.91788208,3279.6,3278.6,1.24103369]
[1768582754659,3.472802,3279.7,3278.1,44.29665342]
[1768582754863,0.91788209,3279.6,3278.5,1.24103369]
[1768582755163,3.472802,3279.7,3278.5,1.24103369]
[1768582755362,0.9178833,3279.6,3278.5,1.24103369]
[1768582755663,3.472802,3279.7,3278.5,1.24103369]
[1768582755863,0.91788892,3279.6,3278.5,1.24103369]
[1768582756063,3.472802,3279.7,3278.5,1.24103369]
[1768582756263,0.91788877,3279.6,3278.5,1.24103369]
[1768582756460,3.472802,3279.7,3278.5,1.24103369]
[1768582756665,0.91789528,3279.6,3278.5,1.24103369]
[1768582756862,3.472802,3279.7,3278.5,1.24103369]
[1768582757063,0.9178985,3279.6,3278.5,1.24103369]
[1768582757361,3.472802,3279.7,3278.5,1.24103369]
[1768582757561,0.91798382,3279.6,3278.5,1.24103369]
[1768582757761,3.472802,3279.7,3278.5,1.24103369]
[1768582757961,0.91798235,3279.6,3278.5,1.24103369]
[1768582758157,3.472802,3279.7,3278.5,1.24103369]
[1768582758465,0.91798235,3279.6,3278.5,1.24103369]
[1768582758665,3.472802,3279.7,3278.5,1.24103369]
[1768582758866,0.91816037,3279.6,3278.5,1.24103369]
[1768582759057,3.472802,3279.7,3278.5,1.24103369]
[1768582759365,0.9181595,3279.6,3278.5,1.24103369]
[1768582759564,3.472802,3279.7,3278.5,1.24103369]
[1768582759864,0.91834709,3279.6,3278.5,1.24103369]
[1768582760067,3.625272,3280.1,3278.5,1.24103369]
[1768582760256,4.39114882,3280.0,3278.5,1.24103369]
[1768582760456,0.91834682,3279.9,3278.8,1.24103369]
[1768582764067,1.24103369,3280.3,3278.8,1.24103369]
[1768582764068,0.91834682,3279.8,3278.8,1.24103369]
[1768582764263,3.47671067,3280.2,3278.8,1.24103369]
[1768582764464,0.91837606,3280.1,3278.8,1.24103369]
[1768582764667,0.91837606,3280.0,3278.8,1.24103369]
[1768582764865,0.91837606,3279.9,3278.8,1.24103369]
[1768582765065,0.91837606,3279.8,3278.8,1.24103369]
[1768582765270,3.47671067,3280.2,3278.8,1.24103369]
[1768582765470,4.39508899,3280.1,3278.8,1.24103369]
[1768582765667,0.91837832,3280.0,3278.8,1.24103369]
[1768582766672,0.91837832,3280.0,3279.1,1.24103369]
[1768582766864,0.91837832,3280.0,3279.4,1.24103369]
[1768582767065,3.47671067,3280.6,3279.7,1.24103369]
[1768582767265,0.91834268,3280.5,3279.4,1.24103369]
[1768582767564,0.91834268,3280.4,3279.4,1.24103369]
[1768582767772,0.91834268,3280.3,3279.4,1.24103369]
[1768582767967,0.91834268,3280.2,3279.7,1.24103369]
[1768582768171,1.727,3280.9,3279.7,1.24103369]
[1768582768571,5.20371067,3280.9,3279.7,1.24103369]
[1768582769773,5.20371067,3280.9,3279.3,3.46629069]
[1768582769967,5.20371067,3280.9,3279.7,1.24103369]
[1768582770168,5.20371067,3280.9,3279.3,3.46629069]
[1768582770377,5.20371067,3280.9,3279.6,1.24103369]
[1768582770965,5.20371067,3280.9,3279.8,1.24103369]
[1768582771370,3.44794289,3281.2,3279.9,1.24103369]
[1768582772680,3.44794289,3281.2,3279.3,44.41879069]
[1768582772986,3.44546073,3281.1,3279.9,1.24103369]
[1768582773474,3.44546073,3281.1,3279.3,44.41879069]
[1768582773778,3.44546073,3281.1,3279.8,1.24103369]
[1768582775671,0.00248216,3281.2,3280.0,1.24103369]
[1768582775871,3.44546073,3281.9,3280.0,4.70732438]
[1768582776078,3.44546073,3281.9,3280.8,1.24103369]
[1768582776276,4.68649442,3281.9,3280.6,1.24103369]
[1768582776876,4.68950634,3281.9,3280.6,1.24335252]
[1768582777080,3.44546073,3281.8,3280.6,1.24335252]
[1768582780772,3.44546073,3281.8,3280.6,0.00231883]
[1768582780971,0.00301192,3281.9,3280.7,1.24103369]
[1768582782078,4.68950634,3281.9,3280.6,0.00231883]
[1768582783186,4.68950634,3281.9,3280.7,1.24103369]
[1768582783588,3.44847265,3281.9,3280.7,1.24103369]
[1768582783890,0.00301192,3281.9,3280.9,1.24103369]
[1768582786492,0.00301192,3281.9,3280.8,1.24103369]
[1768582787489,0.00301192,3281.9,3280.6,0.00231883]
[1768582788989,0.00301192,3281.9,3280.6,3.46860952]
[1768582791991,0.00301192,3281.9,3280.6,44.26860952]
[1768582792192,0.00301192,3281.9,3280.6,3.46860952]
[1768582792390,3.58212414,3281.9,3280.6,0.00231883]
[1768582792589,3.73451414,3281.9,3280.6,0.00231883]
[1768582792787,4.81840668,3281.1,3279.6,0.15249]
[1768582793002,3.57911222,3281.0,3279.6,0.15249]
[1768582793190,3.57911222,3281.0,3279.4,40.8]
[1768582793491,3.57911222,3281.0,3279.3,3.5378005]
[1768582793692,3.57911222,3281.0,3279.3,3.54097554]
[1768582793894,3.57911222,3281.0,3279.3,45.73277]
[1768582794197,3.73151222,3281.5,3279.7,1.23929446]
[1768582794405,3.57911222,3281.3,3279.7,1.23929446]
[1768582796391,0.90843587,3281.2,3279.7,1.23929446]
[1768582796694,3.57911222,3281.3,3279.7,1.23929446]
[1768582796894,0.90850528,3281.2,3279.7,1.23929446]
[1768582797095,3.57911222,3281.3,3279.7,1.23929446]
[1768582797296,0.90850235,3281.2,3279.7,1.23929446]
[1768582797592,0.90884981,3281.1,3279.7,1.23929446]
[1768582797792,3.57911222,3281.3,3279.7,1.23929446]
[1768582798201,0.90885125,3281.2,3279.7,1.23929446]
[1768582798498,3.57911222,3281.3,3279.7,1.23929446]
[1768582798499,0.90885125,3281.1,3279.7,1.23929446]
[1768582798799,3.57911222,3281.3,3279.7,1.23929446]
[1768582799002,0.90910241,3281.2,3279.7,1.23929446]
[1768582799192,0.90910241,3281.1,3279.7,1.23929446]
[1768582799396,3.57911222,3281.3,3279.7,4.77709496]
[1768582799698,0.90930315,3281.2,3279.7,4.77709496]
[1768582799891,0.90930315,3281.1,3279.8,3.5378005]
[1768582800093,0.1524,3281.5,3279.8,3.5378005]
[1768582800292,0.90925656,3281.4,3279.8,3.5378005]
[1768582800594,0.90925656,3281.3,3279.8,3.5378005]
[1768582800792,0.90925656,3281.2,3279.8,3.5378005]
[1768582801003,3.57911222,3281.0,3279.4,3.5378005]
[1768582801198,3.57911222,3281.0,3279.3,40.80317504]
[1768582801497,3.57911222,3280.9,3279.3,40.80317504]
[1768582801995,0.90969515,3280.8,3279.3,40.80317504]
[1768582802203,3.57911222,3280.9,3279.3,40.80317504]
[1768582802391,0.90959376,3280.8,3279.3,40.80317504]
[1768582802594,3.57911222,3280.9,3279.3,0.00317504]
[1768582802797,0.90964847,3280.8,3279.3,0.00317504]
[1768582802993,3.57911222,3280.9,3279.3,0.00317504]
[1768582803200,0.90964796,3280.8,3279.3,0.00317504]
[1768582803395,3.57911222,3281.4,3280.0,1.23981171]
[1768582803600,0.90952748,3281.3,3280.0,1.23981171]
[1768582803801,0.90952748,3281.2,3279.6,4.77761221]
[1768582803999,0.90952748,3281.1,3279.6,4.77761221]
[1768582804199,3.57911222,3280.9,3279.3,0.00317504]
[1768582804795,3.57911222,3281.8,3279.9,4.77761221]
[1768582804995,4.48867313,3281.7,3279.9,4.77761221]
[1768582805194,0.90956091,3281.6,3280.0,3.5378005]
[1768582805390,4.48867313,3281.5,3280.0,3.5378005]
[1768582805596,0.90956091,3281.4,3279.7,0.15248]
[1768582806090,0.90956091,3281.4,3279.7,3.6902805]
[1768582807704,0.90956091,3281.4,3279.9,1.23981171]
[1768582808607,0.90956091,3281.4,3279.7,7.5162805]
[1768582809006,0.90956091,3281.4,3279.8,3.5378005]
[1768582809902,0.90956091,3281.4,3280.0,1.23981171]
[1768582810107,0.90956091,3281.4,3280.4,1.23981171]
[1768582810308,3.58212414,3281.9,3280.1,3.5378005]
[1768582810606,0.9095997,3281.8,3280.1,3.5378005]
[1768582810806,0.9095997,3281.7,3280.1,3.5378005]
[1768582811010,0.9095997,3281.6,3280.1,3.5378005]
[1768582811197,0.9095997,3281.5,3280.1,3.5378005]
[1768582811399,3.58212414,3281.9,3280.1,3.5378005]
[1768582811704,0.90962326,3281.8,3280.1,3.5378005]
[1768582811902,0.90962326,3281.7,3280.1,3.5378005]
[1768582812102,3.57911222,3281.5,3279.6,3.5378005]
[1768582812301,1.23981171,3281.2,3279.4,0.1525]
[1768582812515,3.57911222,3281.0,3279.3,0.00317504]
[1768582812816,3.57911222,3280.8,3279.3,0.00317504]
[1768582813112,0.91409441,3280.7,3279.3,0.00317504]
[1768582813303,0.91397509,3280.6,3279.3,0.00317504]
[1768582813510,3.57911222,3280.8,3279.3,0.00317504]
[1768582813702,0.91399305,3280.7,3279.3,0.00317504]
[1768582813902,0.91399305,3280.6,3279.3,0.00317504]
[1768582814108,3.57911222,3280.8,3279.3,0.00317504]
[1768582814314,0.91399226,3280.7,3279.3,0.00317504]
[1768582814608,3.57911222,3280.8,3279.3,0.00317504]
[1768582814803,0.91390281,3280.7,3279.3,0.00317504]
[1768582815013,3.57911222,3280.8,3279.3,0.00317504]
[1768582815201,0.91390256,3280.7,3279.3,0.00317504]
[1768582815406,3.57911222,3280.8,3279.3,0.00317504]
[1768582815708,0.9138582,3280.7,3279.3,0.00317504]
[1768582815910,3.57911222,3280.8,3279.3,0.00317504]
[1768582816116,0.91385171,3280.7,3279.3,0.00317504]
[1768582816304,3.57911222,3280.8,3279.3,0.00317504]
[1768582816505,0.91383582,3280.7,3279.3,0.00317504]
[1768582816701,3.57911222,3280.8,3279.3,0.00317504]
[1768582816897,0.91385089,3280.7,3279.3,0.00317504]
[1768582817107,3.57911222,3280.8,3279.3,0.00317504]
[1768582817318,0.91385076,3280.7,3279.3,0.00317504]
[1768582817504,4.49299622,3280.6,3279.3,0.00317504]
[1768582817699,3.57911222,3280.4,3279.3,0.00317504]
[1768582818013,3.57911222,3280.2,3279.3,0.00317504]
[1768582818203,4.49299622,3280.1,3278.0,3.5378005]
[1768582818402,3.73156222,3280.5,3278.4,3.5378005]
[1768582818605,0.91354705,3280.4,3278.4,3.5378005]
[1768582818804,3.73156222,3280.5,3278.4,3.5378005]
[1768582818805,4.49265927,3280.3,3278.4,3.5378005]
[1768582819005,0.91354705,3280.2,3278.4,3.5378005]
[1768582819311,0.91354705,3280.2,3278.4,3.54015231]
[1768582820913,3.57911222,3280.3,3278.4,3.54015231]
[1768582821513,0.91338795,3280.2,3278.4,3.54015231]
[1768582821714,3.57911222,3280.3,3278.4,3.54015231]
[1768582822213,3.57911222,3280.3,3278.4,3.69270231]
[1768582823411,0.9132908,3280.2,3278.4,3.69270231]
[1768582823610,3.57911222,3280.3,3278.5,40.8]
[1768582823813,0.91330331,3280.2,3278.5,40.8]
[1768582824008,3.28351883,3280.2,3278.5,40.8]
[1768582824315,0.91316773,3280.1,3278.5,40.8]
[1768582824517,3.28351883,3280.0,3278.5,40.8]
[1768582825214,3.28351883,3280.0,3278.4,0.15490181]
[1768582825416,3.28351883,3280.0,3278.4,0.00235181]
[1768582825617,3.28351883,3279.8,3278.4,0.00235181]
[1768582826115,3.28351883,3279.6,3278.4,0.00235181]
[1768582826313,3.28595639,3279.6,3278.4,0.00235181]
[1768582827024,0.00243756,3279.6,3278.4,0.00235181]
[1768582827202,0.00243756,3279.6,3278.4,3.57263067]
[1768582828910,3.28595639,3279.6,3278.4,0.00235181]
[1768582832220,3.28595639,3279.6,3277.6,0.1526]
[1768582832422,3.33385014,3279.4,3277.6,0.1526]
[1768582833315,3.33385014,3279.4,3277.6,0.15648206]
[1768582833918,3.33385014,3279.4,3277.6,3.41863297]
[1768582835228,0.15251,3279.5,3277.6,3.41863297]
[1768582835712,0.00243756,3279.6,3277.8,3.41474091]
[1768582836114,0.00243756,3279.6,3278.0,3.26215091]
[1768582836622,0.00243756,3279.6,3278.3,3.41471091]
[1768582837015,3.33385014,3280.3,3278.5,3.41471091]
[1768582838031,3.33608193,3280.3,3278.5,7.24971091]
[1768582838222,3.33608193,3280.3,3278.6,3.26215091]
[1768582838617,0.00223179,3280.3,3278.6,3.26215091]
[1768582839128,3.33385014,3280.1,3277.8,0.15259]
[1768582839324,3.33385014,3279.8,3277.8,0.15259]
[1768582839630,3.33385014,3279.6,3277.8,0.15259]
[1768582840324,0.91231279,3279.5,3277.8,0.15259]
[1768582840521,3.33385014,3279.4,3277.8,0.15259]
[1768582843232,0.92457482,3279.3,3277.8,0.15259]
[1768582843432,3.33385014,3279.4,3277.8,0.15259]
[1768582843630,0.92457495,3279.3,3277.8,0.15259]
[1768582843833,3.33385014,3279.4,3277.8,0.15259]
[1768582844032,0.92457495,3279.3,3277.8,0.15259]
[1768582844227,3.33385014,3279.4,3277.8,0.15259]
[1768582844430,0.92472528,3279.3,3277.8,0.15259]
[1768582844633,3.33385014,3279.3,3277.8,0.15259]
[1768582847430,0.1525,3279.7,3277.9,0.15258]
[1768582847627,0.92549552,3279.6,3277.9,0.15258]
[1768582847826,0.92549552,3279.5,3277.9,0.15258]
[1768582848135,0.92549552,3279.4,3277.9,0.15258]
[1768582848332,0.92549552,3279.3,3277.9,0.15258]
[1768582848536,3.48635014,3279.7,3277.9,0.15258]
[1768582848831,0.92550364,3279.6,3277.9,0.15258]
[1768582849031,0.92550364,3279.5,3277.9,0.15258]
[1768582849230,3.48635014,3279.7,3278.0,0.15258]
[1768582849231,0.92550364,3279.4,3278.0,0.15258]
[1768582849432,3.48635014,3279.7,3278.0,0.15258]
[1768582849741,4.25941795,3279.6,3278.0,0.15258]
[1768582850039,4.25941795,3279.5,3278.0,0.15258]
[1768582850336,0.92556781,3279.4,3278.0,0.15258]
[1768582851040,3.33385014,3279.3,3278.0,0.15258]
[1768582852337,3.33385014,3279.3,3277.9,3.859]
[1768582852338,3.33385014,3279.3,3277.5,0.1526]
[1768582852531,3.28735508,3279.1,3277.5,4.0126]
[1768582854133,3.28735508,3278.9,3277.5,4.0146]
[1768582854735,3.28735508,3278.7,3277.0,0.15262]
[1768582854937,3.28735508,3278.7,3276.9,9.01294575]
[1768582855334,3.28735508,3278.7,3277.0,40.8]
[1768582856541,3.28735508,3278.7,3277.2,0.15262]
[1768582857242,1.78686073,3279.3,3277.0,40.8]
[1768582857243,3.28735508,3278.5,3277.0,40.8]
[1768582858340,3.28735508,3278.5,3276.8,3.864]
[1768582858732,3.28735508,3278.5,3276.9,40.8]
[1768582858929,3.28735508,3278.3,3276.7,0.15264]
[1768582859142,3.28735508,3278.1,3276.7,0.15264]
[1768582859539,3.28735508,3278.1,3276.7,40.95264]
[1768582860141,3.28735508,3278.1,3276.7,40.95598339]
[1768582861356,3.28735508,3278.1,3276.7,0.00334339]
[1768582861552,3.28735508,3277.9,3276.7,0.00334339]
[1768582861758,3.2903139,3277.9,3276.7,0.00334339]
[1768582863753,0.00295882,3277.9,3276.7,0.00334339]
[1768582866061,0.00295882,3277.9,3276.7,1.79020412]
[1768582866261,0.00295882,3277.9,3276.7,5.15228914]
[1768582867047,0.00295882,3277.9,3276.8,0.15263]
[1768582867248,3.28735508,3278.9,3277.2,1.93947073]
[1768582867459,0.92369076,3278.8,3277.2,0.15261]
[1768582867764,0.92368777,3278.7,3277.2,0.15261]
[1768582867957,3.28735508,3278.9,3277.2,0.15261]
[1768582868154,3.28735508,3278.7,3277.2,0.15261]
[1768582868352,3.29064752,3278.7,3277.2,0.15261]
[1768582871748,3.29064752,3278.7,3277.2,1.93947073]
[1768582871955,0.00329244,3278.7,3277.2,5.30155575]
[1768582872262,0.00329244,3278.7,3277.3,0.15261]
[1768582873163,0.00329244,3278.7,3277.4,0.15261]
[1768582874362,0.00329244,3278.7,3277.4,4.02961]
[1768582874548,0.00329244,3278.7,3277.4,0.15261]
[1768582874751,3.29064752,3278.7,3277.4,0.15261]
[1768582875555,0.00329244,3278.7,3277.4,0.15261]
[1768582875866,0.00329244,3278.7,3277.5,3.51468502]
[1768582877564,0.00329244,3278.7,3277.5,0.1526]
[1768582878363,0.00329244,3278.7,3277.5,3.51468502]
[1768582878954,4.78,3279.4,3277.8,0.15259]
[1768582879161,0.9187367,3279.3,3277.8,0.15259]
[1768582879362,4.78,3279.4,3277.8,0.15259]
[1768582879561,0.91880959,3279.3,3277.8,0.15259]
[1768582879763,8.06735508,3279.4,3277.8,0.15259]
[1768582880059,0.91880935,3279.3,3277.8,0.15259]
[1768582880358,3.28735508,3279.3,3277.8,0.15259]
[1768582881955,3.28735508,3279.3,3277.2,0.15262]
[1768582882158,3.4965525,3279.1,3277.2,0.15262]
[1768582882356,3.4965525,3278.9,3277.2,0.15262]
[1768582882858,0.91927902,3278.8,3277.2,0.15262]
[1768582883058,3.4965525,3278.7,3277.2,0.15262]
[1768582886874,0.9195916,3278.6,3277.2,0.15262]
[1768582887077,3.4965525,3278.5,3277.2,0.15262]
[1768582889062,3.27592651,3278.3,3276.7,0.00334339]
[1768582891474,3.27592651,3278.3,3276.7,3.49038073]
[1768582894577,3.27592651,3278.3,3276.7,0.15598339]
[1768582894877,3.27592651,3278.1,3276.7,0.15598339]
[1768582895572,3.42847651,3278.6,3276.8,0.15264]
[1768582895772,0.92017972,3278.5,3276.8,3.48703734]
[1768582895966,0.92017972,3278.4,3276.9,0.15263]
[1768582896165,0.92017972,3278.3,3276.9,0.15263]
[1768582896367,3.27592651,3278.6,3276.9,0.15263]
[1768582896676,0.92024538,3278.5,3276.9,0.15263]
[1768582896872,0.92024538,3278.4,3276.9,0.15263]
[1768582897070,0.92024538,3278.3,3276.9,0.15263]
[1768582897271,3.27592651,3278.6,3276.9,0.15263]
[1768582897468,0.92025817,3278.5,3277.0,1.78686073]
[1768582897673,3.27592651,3278.6,3277.0,1.78686073]
[1768582898183,0.92021049,3278.5,3277.0,5.68686073]
[1768582898374,3.27592651,3278.5,3277.2,0.15262]